[Event "2nd Bieszczady Chess-ch A 2022"]
[Site "Bystre"]
[Date "2022.07.22"]
[Round "7.2"]
[White "Lewtak, Damian"]
[Black "Marszalek, Maciej"]
[Result "1/2-1/2"]
[ECO "A04"]
[WhiteElo "2397"]
[BlackElo "2268"]
[Annotator "TA"]
[PlyCount "41"]
[EventDate "2022.07.17"]
[EventCountry "POL"]
[SourceTitle "playchess.com"]
[Source "ChessBase"]
[SourceQuality "1"]
[TimeControl "5400+30"]

{[%evp 15,19,-19,-6,-10,-14,-27]} 1. Nf3 {[%emt 0:00:02]} c5 {[%emt 0:00:23]} 2. g3 {[%emt 0:00:13]} Nc6 {[%emt 0:00:31]} 3. Bg2 {[%emt 0:00:22]} g6 {[%emt 0:00:10]} 4. O-O {[%emt 0:00:37]} Bg7 {[%emt 0:00:03]} 5. d3 {[%emt 0:00:05]} e5 {[%emt 0:02:05]} 6. c4 {[%emt 0:01:33]} Nge7 {[%emt 0:00:13]} 7. Nc3 {[%emt 0:00:07]} d6 {[%emt 0:01:05]} 8. Ne1 {[%emt 0:04:25]} Be6 {[%emt 0:01:24]} 9. Nc2 {[%emt 0:00:54] A37: Symmetrical English vs ...g6: 4 Bg2 Bg7 5 Nf3.} d5 {[%emt 0:02:17]} 10. cxd5 {[%emt 0:00:34] [#] A rather calm draw.} {Predecessor:} Nxd5 $146 11. Ne3 Nde7 12. Nc4 O-O 13. Bg5 f6 14. Be3 b6 15. a3 Qd7 16. b4 cxb4 17. axb4 Nd5 18. Nxd5 Bxd5 19. Bxd5+ Qxd5 20. Bxb6 Nxb4 21. Bxa7 {1-0 (28) Santos Latasa,J (2639)-Karjakin,S (2743) Warsaw 2021} 1/2-1/2

[Event "2nd Bieszczady Chess-ch A 2022"]
[Site "Bystre"]
[Date "2022.07.22"]
[Round "7.3"]
[White "Dzwierzynski, Bartosz"]
[Black "Tymrakiewicz, Rafal"]
[Result "0-1"]
[ECO "E91"]
[WhiteElo "2129"]
[BlackElo "2205"]
[Annotator "TA"]
[PlyCount "186"]
[EventDate "2022.07.17"]
[EventCountry "POL"]
[SourceTitle "playchess.com"]
[Source "ChessBase"]
[SourceQuality "1"]
[TimeControl "5400+30"]

{[%evp 19,186,0,-8,-50,-44,-45,-35,-45,-29,-46,-9,-33,-33,-33,-34,-47,-23,-37,-32,-37,-29,-29,-25,-26,-27,-28,-26,-21,-26,-35,-19,-26,-20,-20,-19,-22,-15,-38,-29,-30,-20,-31,-20,-28,-21,-39,-16,-54,-41,-72,-72,-72,-72,-77,-47,-57,-50,-72,-72,-72,-27,-38,0,-82,-34,-59,-59,-57,-58,-126,0,-36,-36,-93,-93,-93,-93,-93,-81,-81,-81,-126,-116,-127,-105,-97,-97,-103,-98,-127,-127,-132,-127,-127,0,-127,-127,-119,-119,-147,-147,-271,-120,-346,-342,-346,-6,-273,-260,-343,-328,-320,-314,-310,-313,-312,-303,-299,-271,-285,-261,-256,-250,-283,-196,-196,-196,-181,-143,-143,-164,-193,-41,-41,-46,-597,-589,-582,-577,-571,-552,-505,-488,-507,-507,-502,-495,-1017,-1066,-504,-485,-29973,-471,-1070,-1039,-920,-842,-801,-559,-29972,-29973,-29973,-29974,-29970,-29970,-29977,-29978,-29972,-29965]} 1. d4 {[%emt 0:00:02]} Nf6 {[%emt 0:05:11]} 2. c4 {[%emt 0:00:07]} d6 {[%emt 0:00:14]} 3. Nc3 {[%emt 0:01:04]} g6 {[%emt 0:01:20]} 4. e4 {[%emt 0:00:05]} Bg7 {[%emt 0:00:03]} 5. Be2 {[%emt 0:02:12]} Na6 {[%emt 0:08:30]} 6. Nf3 {[%emt 0:01:03]} O-O {[%emt 0:00:07]} 7. O-O {[%emt 0:00:05]} e5 {[%emt 0:00:25]} 8. dxe5 {[%emt 0:17:32]} dxe5 {[%emt 0:00:36]} 9. Bg5 {[%emt 0:00:32]} h6 {[%emt 0:01:54]} 10. Qxd8 {[%emt 0:01:12]} Rxd8 {[%emt 0:00:11]} 11. Bxf6 {[%emt 0:00:03] E94: King's Indian: Classical: 6 Be2 e5 7 0-0: Various Black 7th moves.} Bxf6 {[%emt 0:00:07]} 12. a3 {[%emt 0:00:55]} c6 {[%emt 0:06:55]} 13. b4 {[%emt 0:03:14] [#] Black is slightly better.} Be6 $146 {[%emt 0:08:35]} ({Predecessor:} 13... Bg4 14. Rfd1 Nc7 15. Ne1 Bxe2 16. Nxe2 Ne6 17. Nc2 a5 18. b5 Nc5 19. Nc3 h5 {0-1 (40) Orekhovsky,V (2018)-Savitskiy,S (2190) Dagomys 2009}) 14. Rfd1 {[%emt 0:02:06]} Bg7 {[%emt 0:00:54]} 15. Rxd8+ {[%emt 0:03:45]} Rxd8 {[%emt 0:00:11]} 16. Rd1 {[%emt 0:00:37]} Rxd1+ {[%emt 0:01:34]} 17. Nxd1 {[%emt 0:00:06]} f6 {[%emt 0:01:00]} (17... c5 $5 {[%cal Rc5b4]} 18. b5 Nc7 $15) 18. Nd2 {[%emt 0:02:55]} Nc7 {[%emt 0:04:13]} 19. Nc3 {[%emt 0:00:21]} b6 {[%emt 0:10:49]} 20. b5 {[%emt 0:06:19]} cxb5 {[%emt 0:15:02]} 21. Nxb5 {[%emt 0:02:14]} Nxb5 {[%emt 0:03:01]} 22. cxb5 $11 {[%emt 0:00:05][%mdl 4096] Endgame KBB-KBN} Bd7 {[%emt 0:01:46]} 23. Bc4+ {[%emt 0:00:54]} Kf8 {[%emt 0:00:56]} 24. a4 {[%emt 0:00:54]} Ke8 {[%emt 0:00:57]} 25. Bd5 {[%emt 0:01:30]} Bf8 {[%emt 0:01:47]} 26. Nc4 {[%emt 0:00:17]} Bc5 {[%emt 0:00:33]} 27. Kf1 {[%emt 0:00:51]} Kd8 {[%emt 0:05:29]} 28. Nd2 {[%emt 0:09:50]} Ke7 {[%emt 0:08:27]} 29. h3 {[%emt 0:01:38]} Be8 {[%emt 0:04:00]} 30. g3 {[%emt 0:01:21]} Kd6 {[%emt 0:00:58]} 31. Nc4+ {[%emt 0:01:20]} Kc7 {[%emt 0:00:13]} 32. Nd2 {[%emt 0:00:03]} Bb4 {[%emt 0:03:12]} 33. Nb3 {[%emt 0:00:40]} Kd6 {[%emt 0:01:04]} 34. Kg2 {[%emt 0:00:37]} f5 {[%emt 0:00:37]} 35. f3 {[%emt 0:00:16]} Bc3 {[%emt 0:03:59]} 36. Kh2 {[%emt 0:02:07]} Bd4 {[%emt 0:01:53]} 37. Kg2 {[%emt 0:00:06]} Be3 {[%emt 0:00:15]} 38. Kh2 {[%emt 0:01:08]} h5 {[%emt 0:00:48]} 39. Kg2 {[%emt 0:00:41]} Ke7 {[%emt 0:00:38]} 40. Na1 {[%emt 0:00:00]} Kd6 {[%emt 0:00:00]} 41. Nb3 {[%emt 0:00:00]} Bg5 {[%emt 0:00:00]} (41... Bd7 $17) 42. Kf2 {[%emt 0:00:00]} Bh6 {[%emt 0:00:00]} 43. Ke2 {[%emt 0:00:00]} Bd7 {[%emt 0:00:00]} 44. h4 {[%emt 0:00:17]} (44. Ke1 $15) 44... Be8 {[%emt 0:00:00]} (44... f4 $17 45. gxf4 Bxf4) 45. Kf2 {[%emt 0:01:31]} (45. Nd2 $5 {[%cal Rd2c4]}) 45... g5 {[%emt 0:00:00]} 46. hxg5 {[%emt 0:03:14]} ({White should play} 46. Nd2 $15) 46... Bxg5 $17 {[%emt 0:00:00]} 47. Kg2 {[%emt 0:02:05]} Bd7 {[%emt 0:00:00]} 48. Bf7 {[%emt 0:03:30]} fxe4 {[%emt 0:01:33]} 49. fxe4 {[%emt 0:00:48]} Bg4 {[%emt 0:00:16]} 50. Bc4 {[%emt 0:02:02]} Be3 {[%emt 0:00:36]} 51. Bd5 {[%emt 0:01:42]} Be2 {[%emt 0:00:40]} 52. Bf7 {[%emt 0:00:54]} Ke7 {[%emt 0:00:43]} 53. Bg8 {[%emt 0:04:09]} Kf6 {[%emt 0:00:07]} 54. Bd5 {[%emt 0:01:36]} Kg5 {[%emt 0:00:06]} 55. Bf7 {[%emt 0:01:46]} Bd1 {[%emt 0:02:12]} 56. Bd5 {[%emt 0:00:49]} Be2 {[%emt 0:01:34]} 57. Bf7 $1 {[%emt 0:00:15]} h4 {[%emt 0:01:05][%cal Oh4h3]} 58. Be6 {[%emt 0:00:35]} Bd1 {[%emt 0:00:16]} 59. Bd5 {[%emt 0:00:33]} Bg4 {[%emt 0:00:34]} 60. Na1 {[%emt 0:04:12]} (60. gxh4+ $17 {was necessary.} Kxh4 61. Bc4) 60... Be2 {[%emt 0:01:44]} (60... hxg3 $19 {is more deadly. ( -> ...Kf4)} 61. Kxg3 Bd2) 61. Nb3 $2 {[%emt 0:00:14]} (61. Be6 $17) 61... h3+ $1 $19 {[%emt 0:00:27]} 62. Kxh3 {[%emt 0:02:15]} Bf1+ $1 {[%emt 0:00:01]} 63. Kh2 {[%emt 0:00:08]} Kg4 $1 {[%emt 0:00:10]} 64. Na1 {[%emt 0:04:34]} Kf3 $1 {[%emt 0:00:25]} 65. Nc2 {[%emt 0:00:10]} Bc5 {[%emt 0:00:35]} 66. Ne1+ {[%emt 0:01:12]} Kf2 {[%emt 0:00:25]} 67. Nc2 {[%emt 0:00:17]} Bd3 {[%emt 0:01:00]} 68. Na1 {[%emt 0:00:32]} Be2 {[%emt 0:00:55]} 69. Kh3 {[%emt 0:01:21]} Ke3 {[%emt 0:00:05]} 70. Nb3 {[%emt 0:00:47]} Ba3 {[%emt 0:00:27]} 71. Kh4 {[%emt 0:02:27]} Be7+ {[%emt 0:00:19] A strong pair of Bishops.} 72. Kh3 {[%emt 0:00:07]} Bd1 {[%emt 0:00:22]} 73. a5 {[%emt 0:05:47]} Bb4 {[%emt 0:00:45]} 74. axb6 {[%emt 0:00:21]} axb6 {[%emt 0:00:01]} 75. g4 {[%emt 0:00:21]} Kf4 $2 {[%emt 0:00:19]} (75... Be7 $1 $19 {aiming for ...Be2.} 76. Nc1 Ba4) 76. g5 $1 $15 {[%emt 0:00:31]} Kxg5 {[%emt 0:00:29]} 77. Kg3 $2 {[%emt 0:00:03][%mdl 8192] [#] White is now going downhill.} (77. Nc1 $1 $15) 77... Be1+ $1 $19 {[%emt 0:00:06]} 78. Kg2 {[%emt 0:00:47] [#]} Kf4 $1 {[%emt 0:01:11]} 79. Kf1 {[%emt 0:02:28]} Bc3 {[%emt 0:00:30]} 80. Kf2 {[%emt 0:01:38]} Bg4 {[%emt 0:00:48]} 81. Bc6 {[%emt 0:02:02]} Bf3 {[%emt 0:00:26]} 82. Nc1 {[%emt 0:00:51]} Bd4+ {[%emt 0:00:17]} 83. Ke1 {[%emt 0:00:24]} (83. Kf1 $142 Ke3 84. Na2) 83... Ke3 {[%emt 0:00:02]} 84. Kf1 {[%emt 0:00:54]} Bc5 {[%emt 0:01:09] Hoping for ...Ba3.} 85. Ke1 {[%emt 0:01:22]} (85. Bd5 $19) 85... Bb4+ {[%emt 0:00:15]} (85... Ba3 $142 86. Kf1 Bxc1 87. Kg1 Bxe4 88. Kh2 Ba3 89. Be8 Kd4 90. Bh5 Bd3 91. Kg3 e4 92. Kf2 e3+ 93. Kg2 Be7 94. Kg3 e2 95. Bxe2 Bxe2 96. Kh3 Bf6 97. Kh2 Ke3 98. Kg2 Be5 99. Kh3 Kf2 100. Kh4 Bf6+ 101. Kh3 Be7 102. Kh2 Bf1 103. Kh1 Bg2+ 104. Kh2 Bd6#) 86. Kf1 {[%emt 0:00:11]} Bd2 {[%emt 0:01:17]} 87. Nb3 {[%emt 0:00:09]} Be2+ {[%emt 0:00:09]} 88. Kg2 {[%emt 0:00:05]} Be1 {[%emt 0:00:43]} 89. Na1 {[%emt 0:00:58]} Kd3 {[%emt 0:00:24] Inhibits Nc2. Black mates.} 90. Nb3 {[%emt 0:00:30]} Kc2 {[%emt 0:00:29]} 91. Bd5 {[%emt 0:01:02]} Bc3 {[%emt 0:00:37]} 92. Kf2 {[%emt 0:00:33]} Bxb5 {[%emt 0:00:11]} 93. Ke3 {[%emt 0:00:42]} Ba4 {[%emt 0:00:30] Weighted Error Value: White=0.14 (very precise) /Black=0.16 (very precise)} 0-1

[Event "2nd Bieszczady Chess-ch A 2022"]
[Site "Bystre"]
[Date "2022.07.22"]
[Round "7.4"]
[White "Karvatskyi, Oleksii"]
[Black "Kasperek, Ryszard"]
[Result "0-1"]
[ECO "B20"]
[WhiteElo "1804"]
[BlackElo "2058"]
[Annotator "TA"]
[PlyCount "58"]
[EventDate "2022.07.17"]
[EventCountry "POL"]
[SourceTitle "playchess.com"]
[Source "ChessBase"]
[SourceQuality "1"]
[TimeControl "5400+30"]

{[%evp 9,58,-9,-12,-7,-17,-58,-59,-71,-57,-72,-75,-59,-56,-74,-7,11,-5,-34,0,-72,-73,-137,-141,-160,-152,-163,-142,-202,-209,-214,-219,-211,-216,-208,-217,-210,-185,-256,-248,-239,-246,-450,-439,-2079,-2032,-29985,-29986,-29986,-29987,-29987,-29988]} 1. e4 {[%emt 0:00:03]} c5 {[%emt 0:00:19]} 2. b3 {[%emt 0:00:24]} Nc6 {[%emt 0:00:52]} 3. Bb2 {[%emt 0:00:06]} e6 {[%emt 0:00:26]} 4. Bb5 {[%emt 0:00:23]} Nge7 {[%emt 0:00:20]} 5. Nc3 {[%emt 0:00:31]} a6 {[%emt 0:00:09] [#]} 6. Bxc6 $146 {[%emt 0:00:57] B20: Sicilian: Unusual White 2nd moves.} ({Predecessor:} 6. Be2 Ng6 7. Nf3 Be7 8. d4 cxd4 9. Nxd4 Nxd4 10. Qxd4 Bf6 11. Qd2 O-O 12. f4 {1-0 (55) Buksa,N (2413)-Eswaran,A (2244) Chess.com INT 2021}) 6... Nxc6 {[%emt 0:00:06]} 7. f4 {[%emt 0:00:16]} d5 {[%emt 0:13:11]} 8. exd5 {[%emt 0:01:13] Black is slightly better.} exd5 {[%emt 0:03:05]} 9. Nf3 {[%emt 0:00:23]} Be7 {[%emt 0:02:33]} 10. O-O {[%emt 0:00:25]} O-O {[%emt 0:00:06]} 11. Ne5 {[%emt 0:12:04]} Bf6 {[%emt 0:09:35]} (11... Nd4 $17) 12. Nxc6 {[%emt 0:00:42]} bxc6 {[%emt 0:00:05]} 13. Qf3 {[%emt 0:00:53]} Bf5 {[%emt 0:02:14]} 14. Rac1 {[%emt 0:03:08]} (14. Na4 $11) 14... Qa5 $17 {[%emt 0:12:06] Black converts the advantage convincingly.} 15. a4 {[%emt 0:07:19]} (15. Nd1 $142) 15... Rfe8 {[%emt 0:03:55]} 16. Ba1 {[%emt 0:03:23]} c4 {[%emt 0:11:41] Black is more active.} 17. g4 {[%emt 0:10:23]} Bd4+ {[%emt 0:11:08] A strong pair of Bishops.} 18. Kg2 {[%emt 0:03:02]} (18. Kh1 $17 {might work better.} Be4 19. Nxe4 dxe4 20. Qg2 Bxa1 21. Rxa1) 18... Be4 $19 {[%emt 0:00:25]} 19. Nxe4 {[%emt 0:00:16]} dxe4 {[%emt 0:00:01]} 20. Qe2 {[%emt 0:00:14] [#]} Bxa1 {[%emt 0:00:13]} 21. Rxa1 {[%emt 0:00:02]} cxb3 {[%emt 0:02:19]} 22. cxb3 {[%emt 0:00:10]} Rad8 $36 {[%emt 0:00:14][%mdl 2048] Black is on the roll.} 23. Rfd1 {[%emt 0:00:38]} (23. Rf2 $142) 23... Rd3 {[%emt 0:00:41]} 24. Rac1 {[%emt 0:00:09]} Qd5 {[%emt 0:06:17] Hoping for ...e3+.} ({Inferior is} 24... Rxb3 25. Rxc6 Rd3 26. Rc4) 25. Kf2 {[%emt 0:01:41] [#] Prevents e3+.} (25. Kg1) 25... Rd8 {[%emt 0:03:06]} 26. Rc4 {[%emt 0:00:26]} (26. Kg1 $142 e3 27. Re1 Rxd2 28. Qf1) 26... e3+ {[%emt 0:00:10]} 27. Kg1 {[%emt 0:00:19]} Rxd2 {[%emt 0:00:28] Black mates.} 28. Rxd2 {[%emt 0:00:03]} exd2 {[%emt 0:00:13]} 29. Qd1 {[%emt 0:00:08]} Re8 {[%emt 0:00:48] Weighted Error Value: White=0.93/Black=0.08 (flawless)} 0-1

[Event "2nd Bieszczady Chess-ch A 2022"]
[Site "Bystre"]
[Date "2022.07.22"]
[Round "7.5"]
[White "Wilk, Tomasz"]
[Black "Maksimenko, Andrei Jr"]
[Result "1-0"]
[ECO "B23"]
[WhiteElo "1900"]
[BlackElo "1897"]
[Annotator "TA"]
[PlyCount "59"]
[EventDate "2022.07.17"]
[EventCountry "POL"]
[SourceTitle "playchess.com"]
[Source "ChessBase"]
[SourceQuality "1"]
[TimeControl "5400+30"]

{[%evp 10,59,0,-11,-18,-6,111,90,187,183,207,201,220,157,252,250,257,255,255,252,251,241,243,243,251,248,258,243,243,243,243,243,234,228,325,270,497,483,896,766,743,743,863,830,29987,1724,1635,1466,2005,1132,29992,29993]} 1. e4 {[%emt 0:00:03]} c5 {[%emt 0:05:34]} 2. Nc3 {[%emt 0:00:06]} Nc6 {[%emt 0:00:06]} 3. f4 {[%emt 0:00:04]} e6 {[%emt 0:00:15]} 4. Nf3 {[%emt 0:00:04]} d5 {[%emt 0:00:55]} 5. Bb5 {[%emt 0:00:08]} Nge7 {[%emt 0:00:18]} 6. O-O {[%emt 0:03:28]} a6 {[%emt 0:17:32] B23: Closed Sicilian: Lines without g3.} 7. Bxc6+ {[%emt 0:00:09]} bxc6 {[%emt 0:00:05]} (7... Nxc6 $11 {keeps the balance.} 8. exd5 exd5) 8. d3 {[%emt 0:01:54]} g6 {[%emt 0:01:23]} (8... Ng6 $16) 9. Na4 $18 {[%emt 0:03:29]} Qa5 {[%emt 0:05:25]} 10. c4 {[%emt 0:00:16]} Bg7 {[%emt 0:07:39] [#]} 11. e5 $146 {[%emt 0:06:50]} ({Predecessor:} 11. Be3 d4 12. Bd2 Qc7 13. Nxc5 O-O 14. b4 Rd8 15. Nb3 f6 16. Qe2 e5 17. fxe5 fxe5 {1-0 (23) Hava,J (2080)-Ptacnik,P Czech Republic 2012}) 11... O-O {[%emt 0:04:14]} (11... Nf5 $16 {might work better.} 12. Bd2 Qc7) 12. Be3 {[%emt 0:00:41]} (12. Bd2 $6 Qc7 13. Be3 (13. Nxc5 h5 $16) 13... d4 $16) 12... Qd8 {[%emt 0:13:11]} (12... d4 $2 13. Bd2 Qc7 14. g4 (14. Nxc5 Qa7 $18)) 13. Qe1 {[%emt 0:03:24]} ({Much less strong is} 13. Nxc5 $6 f6 14. g4 fxe5 $18) 13... h6 {[%emt 0:07:50]} 14. Rd1 {[%emt 0:06:12]} ({Don't play} 14. Nxc5 $6 h5 15. b4 Nf5 $18) 14... Kh7 {[%emt 0:01:04]} 15. b3 {[%emt 0:00:33]} Rh8 {[%emt 0:00:14]} 16. Bxc5 {[%emt 0:02:05]} ({Resist} 16. Nxc5 Nf5 17. Bf2 h5) 16... Qe8 {[%emt 0:01:26]} 17. g4 {[%emt 0:00:20]} Kg8 {[%emt 0:01:44]} 18. Kg2 {[%emt 0:00:49]} h5 {[%emt 0:00:33]} 19. h3 {[%emt 0:00:08]} a5 {[%emt 0:01:59]} 20. Qe3 {[%emt 0:02:39]} Bb7 {[%emt 0:04:51]} 21. Nd4 {[%emt 0:00:22]} Nc8 {[%emt 0:01:07]} (21... Rb8 {was called for.} 22. Rh1 Nc8) 22. Rde1 {[%emt 0:00:49]} Bf8 $2 {[%emt 0:00:43]} (22... Ne7 23. Rh1 Qd8) 23. f5 {[%emt 0:01:22]} hxg4 {[%emt 0:07:54]} (23... Bg7 $142 24. Nxe6 fxe6) 24. hxg4 {[%emt 0:00:22]} exf5 {[%emt 0:01:04]} 25. gxf5 {[%emt 0:00:45] And now Rh1 would win.} Bxc5 {[%emt 0:01:11]} 26. Nxc5 {[%emt 0:00:11] White threatens Rh1 and mate. Pair of Knights!} Qe7 {[%emt 0:01:07] [#]} 27. fxg6 $1 {[%emt 0:00:41]} fxg6 {[%emt 0:01:08]} 28. Nde6 {[%emt 0:01:44]} Nb6 {[%emt 0:01:27]} 29. Rf6 {[%emt 0:00:38]} Qh7 {[%emt 0:01:34]} 30. Qg3 {[%emt 0:00:06] White took control after the opening.  Weighted Error Value: White=0.10 (very precise) /Black=1.00} 1-0

[Event "2nd Bieszczady Chess-ch A 2022"]
[Site "Bystre"]
[Date "2022.07.22"]
[Round "7.6"]
[White "Bugajski, Robert"]
[Black "Babiarz, Arkadiusz"]
[Result "0-1"]
[ECO "D26"]
[WhiteElo "2075"]
[BlackElo "2027"]
[Annotator "TA"]
[PlyCount "66"]
[EventDate "2022.07.17"]
[EventCountry "POL"]
[SourceTitle "playchess.com"]
[Source "ChessBase"]
[SourceQuality "1"]
[TimeControl "5400+30"]

{[%evp 16,66,24,19,38,22,48,0,0,0,0,0,0,0,11,-27,-31,-25,-3,-37,-29,-68,-50,-61,-79,-70,-74,-100,-103,-135,-56,-58,-52,-49,-18,-96,-71,-127,-97,-182,-155,-158,-140,-110,-117,-194,-198,-199,-213,-565,-584,-1481,-1471]} 1. c4 {[%emt 0:00:04] Huzman,A} e6 {[%emt 0:00:06]} 2. Nf3 {[%emt 0:00:23]} d5 {[%emt 0:00:10]} 3. d4 {[%emt 0:00:23]} dxc4 {[%emt 0:01:08]} 4. e3 {[%emt 0:00:21]} Nf6 {[%emt 0:00:15]} 5. Bxc4 {[%emt 0:00:13]} a6 {[%emt 0:00:10]} 6. a4 {[%emt 0:00:22]} c5 {[%emt 0:00:48]} 7. Nc3 {[%emt 0:00:59]} Nbd7 {[%emt 0:00:51]} 8. O-O {[%emt 0:02:17]} Qc7 {[%emt 0:01:49]} 9. Qe2 {[%emt 0:02:42]} Bd6 {[%emt 0:02:22] D27: Queen's Gambit Accepted: Classical main line: 7 e4!? and 7 a4.} 10. dxc5 {[%emt 0:07:11]} Nxc5 {[%emt 0:05:18] [#]} 11. b3 $146 {[%emt 0:05:40]} (11. Rd1 $14 {feels stronger.}) ({Predecessor:} 11. e4 Ncd7 12. Bg5 b6 13. Rac1 Bb7 14. Bxe6 fxe6 15. Nb5 axb5 16. Rxc7 Bxc7 17. Qxb5 Nxe4 {1-0 (61) Stocek,J (2543)-Markowski,T (2605) Antalya 2004 CBM 101 [Huzman,A]}) 11... Nxb3 {[%emt 0:03:39] The position is equal.} 12. Bxb3 {[%emt 0:19:53]} Qxc3 {[%emt 0:00:09]} 13. Rb1 {[%emt 0:00:21]} Bd7 {[%emt 0:01:39]} 14. Rd1 {[%emt 0:05:39]} Qc7 {[%emt 0:05:03]} 15. Qd3 {[%emt 0:05:29][%mdl 1024] White has compensation.} Be7 {[%emt 0:00:56]} 16. Bb2 {[%emt 0:00:31]} Rd8 {[%emt 0:02:28][%cal Ba8d8,Bd8c8,Bc8c6][%mdl 32]} 17. Be5 {[%emt 0:14:35]} Qa5 {[%emt 0:00:48]} 18. Bc3 {[%emt 0:01:20]} Qh5 {[%emt 0:00:33]} 19. Qc4 {[%emt 0:18:06]} O-O {[%emt 0:02:41]} 20. Ne5 {[%emt 0:01:12]} Rc8 {[%emt 0:01:47]} 21. Qd3 {[%emt 0:05:41]} Rfd8 {[%emt 0:01:00][%cal Od7a4] Hoping for ...Bxa4!} 22. Bd4 {[%emt 0:00:19]} Bc6 {[%emt 0:01:59]} (22... Bd6 $17 23. f4 Be8) 23. Nxc6 $15 {[%emt 0:00:37]} Rxc6 {[%emt 0:00:07]} 24. Qf1 {[%emt 0:01:30]} Rdc8 {[%emt 0:05:05][%cal Bd8c8,Bc8c6,Bc6c1][%mdl 32]} 25. h3 {[%emt 0:00:53]} (25. Bxf6 $11 {keeps the balance.} Bxf6 26. Rd7) 25... Ne4 $36 {[%emt 0:03:52][%mdl 2048] Black is in control.} 26. Qe1 {[%emt 0:02:32]} (26. Qd3 $142 Nc3 27. Bxc3 Rxc3 28. Qf1) 26... a5 {[%emt 0:03:14] Threatens to win with ...Bb4.} 27. Rdc1 {[%emt 0:01:28]} (27. Rb2 $17) 27... Bb4 {[%emt 0:01:09]} 28. Rxc6 {[%emt 0:00:18]} Rxc6 {[%emt 0:00:02]} 29. Qd1 {[%emt 0:00:50]} Qf5 {[%emt 0:00:48] 0x0.001eb8d8a066dp-1022s more active pieces.} 30. f3 {[%emt 0:01:28]} (30. f4 $17 {was called for.}) 30... Nd2 $19 {[%emt 0:00:56]} 31. Rb2 {[%emt 0:00:49]} e5 {[%emt 0:05:38]} 32. e4 $2 {[%emt 0:00:23]} (32. Bd5 exd4 33. Bxc6 dxe3 34. Bb5) 32... Qg5 {[%emt 0:00:27]} 33. Bf2 {[%emt 0:00:38] [#]} Rc1 $3 {[%emt 0:00:20][%mdl 512] Weighted Error Value: White=0.54/Black=0.09 (flawless)} 0-1

[Event "2nd Bieszczady Chess-ch A 2022"]
[Site "Bystre"]
[Date "2022.07.22"]
[Round "7.7"]
[White "Palacki, Rafal"]
[Black "Sygulski, Piotr"]
[Result "1-0"]
[ECO "B12"]
[WhiteElo "1832"]
[BlackElo "2013"]
[Annotator "TA"]
[PlyCount "43"]
[EventDate "2022.07.17"]
[EventCountry "POL"]
[SourceTitle "playchess.com"]
[Source "ChessBase"]
[SourceQuality "1"]
[TimeControl "5400+30"]

{[%evp 9,43,41,45,29,45,31,42,37,58,49,58,-14,10,0,9,-8,33,31,33,18,37,21,61,28,89,86,61,59,120,116,244,233,250,245,567,585]} 1. e4 {[%emt 0:05:52][%cal Be2e4,Be4e5][%mdl 32]} c6 {[%emt 0:00:05]} 2. d4 {[%emt 0:00:03]} d5 {[%emt 0:00:03]} 3. e5 {[%emt 0:00:03]} c5 {[%emt 0:00:04]} 4. Nf3 {[%emt 0:00:03]} Nc6 {[%emt 0:00:49]} 5. dxc5 {[%emt 0:00:28]} Bg4 {[%emt 0:00:41]} 6. c3 {[%emt 0:00:05] B12: Caro-Kann: Advance Variation.} Bxf3 {[%emt 0:08:32]} 7. Qxf3 {[%emt 0:00:17]} Nxe5 {[%emt 0:01:17]} 8. Bb5+ {[%emt 0:00:11] White is slightly better.} Nc6 {[%emt 0:00:03]} 9. O-O {[%emt 0:01:30]} e6 {[%emt 0:01:49]} 10. Qg3 {[%emt 0:02:36]} (10. Be3 $14) 10... Nf6 {[%emt 0:02:52] [#]} (10... Nge7 $5 {[%cal Re7f5]}) 11. Be3 $146 {[%emt 0:00:28]} ({Predecessor:} 11. Nd2) 11... Ne4 {[%emt 0:00:35][%csl LRc5,LRg3]} 12. Qe5 {[%emt 0:02:26]} Nxc5 {[%emt 0:06:35]} (12... Qd7 $5 {[%cal Rc6e5]} 13. Bxc6 bxc6 $11) 13. Bxc5 {[%emt 0:00:41]} Bxc5 {[%emt 0:00:05]} 14. Qxg7 {[%emt 0:00:11]} Ke7 $1 {[%emt 0:02:35]} 15. Qg5+ {[%emt 0:04:03]} Kd7 {[%emt 0:00:44]} 16. Qh5 {[%emt 0:01:17] [#] Black must now prevent c4.} Qe7 {[%emt 0:06:02]} (16... Qf6 $11) 17. Nd2 {[%emt 0:00:51][%cal Bb1d2,Bd2f3,Bf3e5][%mdl 32]} Rhg8 {[%emt 0:06:42]} 18. Nf3 {[%emt 0:02:21] Inhibits Qg5. c4 is the strong threat.} ({Don't go for} 18. Qxh7 $2 Qg5 19. Qxf7+ Be7 $19) 18... Rg7 {[%emt 0:04:21]} ({Better is} 18... Kc7 $14) 19. c4 {[%emt 0:11:43]} d4 {[%emt 0:11:29]} (19... Rag8 $16) 20. Rad1 $18 {[%emt 0:00:38] [#] Strongly threatening b4.} Rag8 {[%emt 0:01:35]} 21. g3 {[%emt 0:11:14]} Rg4 $2 {[%emt 0:07:53]} (21... Kc8 {is tougher.} 22. Bxc6 bxc6 23. Nxd4 Bxd4) 22. Ne5+ {[%emt 0:00:21] Weighted Error Value: White=0.15 (very precise) /Black=0.42} 1-0